[Event "Gibraltar Masters 18th"]
[Site "Gibraltar"]
[Date "2020.01.27"]
[Round "7.27"]
[White "Buksa, Nataliya"]
[Black "Gukesh, Dommaraju"]
[Result "0-1"]
[ECO "B01"]
[WhiteElo "2403"]
[BlackElo "2542"]
[PlyCount "78"]
[EventDate "2020.01.21"]
[EventType "swiss"]
[EventRounds "10"]
[EventCountry "GGB"]
[SourceTitle "BritBase"]
[Source "John Saunders"]
[SourceDate "2021.06.05"]
[SourceVersion "1"]
[SourceVersionDate "2021.06.05"]
[SourceQuality "1"]
[TimeControl "40/100:0"]
[WhiteClock "0:03:32"]
[BlackClock "0:02:33"]

1. e4 {[%emt 0:00:00]} d5 {[%emt 0:00:00]} 2. exd5 {[%emt 0:00:00]} Nf6 {
[%emt 0:00:00]} 3. d4 {[%emt 0:00:00]} Bg4 {[%emt 0:00:00]} 4. f3 {[%emt 0:00:
00]} Bf5 {[%emt 0:00:00]} 5. c4 {[%emt 0:00:00]} e6 {[%emt 0:00:00]} 6. dxe6 {
[%emt 0:00:00]} Nc6 {[%emt 0:00:00]} 7. Be3 {[%emt 0:00:00]} Bb4+ {[%emt 0:00:
00]} 8. Nc3 {[%emt 0:00:00]} Qe7 {[%emt 0:00:00]} 9. Bd3 {[%emt 0:00:00]} Bxe6
{[%emt 0:00:00]} 10. Kf2 {[%emt 0:00:00]} O-O-O {[%emt 0:00:00]} 11. Nge2 {
[%emt 0:00:00]} Rhe8 {[%emt 0:00:00]} 12. Qd2 {[%emt 0:00:00]} Qd6 {[%emt 0:00:
00]} 13. Rad1 {[%emt 0:00:00]} Qe7 {[%emt 0:00:00]} 14. Rhe1 {[%emt 0:00:00]}
Na5 {[%emt 0:00:00]} 15. b3 {[%emt 0:00:00]} Nc6 {[%emt 0:00:00]} 16. Qc1 {
[%emt 0:00:00]} Ba3 {[%emt 0:00:00]} 17. Qd2 {[%emt 0:00:00]} Bb4 {[%emt 0:00:
00]} 18. Ra1 {[%emt 0:00:00]} a6 {[%emt 0:00:00]} 19. Rad1 {[%emt 0:00:00]} Kb8
{[%emt 0:00:22]} 20. h3 {[%emt 0:00:00]} h6 {[%emt 0:00:35]} 21. Bb1 {[%emt 0:
00:00]} g5 {[%emt 0:00:06]} 22. d5 {[%emt 0:00:00]} Bc8 {[%emt 0:00:03]} 23.
Nd4 {[%emt 0:00:00]} Ne5 {[%emt 0:00:00]} 24. Nf5 {[%emt 0:00:00]} Bxf5 {
[%emt 0:00:00]} 25. Bxf5 {[%emt 0:00:00]} Qd6 {[%emt 0:00:01]} 26. Bd4 {
[%emt 0:00:00]} c5 {[%emt 0:00:00]} 27. Be3 {[%emt 0:00:00]} Nh5 {[%emt 0:00:
00]} 28. Rg1 {[%emt 0:00:00]} Qf6 {[%emt 0:00:00]} 29. Qc2 {[%emt 0:00:00]}
Bxc3 {[%emt 0:00:00]} 30. Bxc5 {[%emt 0:00:00]} Nf4 {[%emt 0:00:00]} 31. Be3 {
[%emt 0:00:00]} Ba5 {[%emt 0:00:00]} 32. Be4 {[%emt 0:00:00]} g4 {[%emt 0:00:
00]} 33. Bf5 {[%emt 0:00:00]} Qh4+ {[%emt 0:00:00]} 34. Kf1 {[%emt 0:00:00]}
Neg6 {[%emt 0:00:00]} 35. b4 {[%emt 0:00:00]} Rxe3 {[%emt 0:00:00]} 36. bxa5 {
[%emt 0:00:00]} Re2 {[%emt 0:00:00]} 37. Qxe2 {[%emt 0:00:00]} Nxe2 {[%emt 0:
00:00]} 38. Kxe2 {[%emt 0:00:00]} gxf3+ {[%emt 0:00:00]} 39. gxf3 {[%emt 0:00:
00]} Qxc4+ {[%emt 0:00:00]} 0-1

[Event "Gibraltar Masters 18th"]
[Site "Gibraltar"]
[Date "2020.01.27"]
[Round "7.28"]
[White "Le, Quang Liem"]
[Black "Plotkin, Victor"]
[Result "1-0"]
[ECO "A36"]
[WhiteElo "2713"]
[BlackElo "2267"]
[PlyCount "67"]
[EventDate "2020.01.21"]
[EventType "swiss"]
[EventRounds "10"]
[EventCountry "GGB"]
[SourceTitle "BritBase"]
[Source "John Saunders"]
[SourceDate "2021.06.05"]
[SourceVersion "1"]
[SourceVersionDate "2021.06.05"]
[SourceQuality "1"]
[TimeControl "40/100:0"]
[WhiteClock "0:17:49"]
[BlackClock "0:03:19"]

1. c4 {[%emt 0:00:00]} e5 {[%emt 0:00:00]} 2. g3 {[%emt 0:00:00]} c5 {[%emt 0:
00:00]} 3. Nc3 {[%emt 0:00:00]} Nc6 {[%emt 0:00:00]} 4. d3 {[%emt 0:00:00]} d6
{[%emt 0:00:00]} 5. Bg2 {[%emt 0:00:00]} g6 {[%emt 0:00:00]} 6. a3 {[%emt 0:00:
00]} a5 {[%emt 0:00:00]} 7. f4 {[%emt 0:00:00]} Bg7 {[%emt 0:00:00]} 8. fxe5 {
[%emt 0:00:00]} Nxe5 {[%emt 0:00:00]} 9. Nh3 {[%emt 0:00:00]} Ne7 {[%emt 0:00:
00]} 10. Nf4 {[%emt 0:00:00]} O-O {[%emt 0:00:00]} 11. O-O {[%emt 0:00:00]} Rb8
{[%emt 0:00:00]} 12. h3 {[%emt 0:00:00]} Bd7 {[%emt 0:00:00]} 13. Bd2 {[%emt 0:
00:00]} Bc6 {[%emt 0:00:00]} 14. Rb1 {[%emt 0:00:00]} Bxg2 {[%emt 0:00:00]} 15.
Kxg2 {[%emt 0:00:00]} N5c6 {[%emt 0:00:00]} 16. Qa4 {[%emt 0:00:00]} Nf5 {
[%emt 0:00:00]} 17. Nfd5 {[%emt 0:00:00]} Re8 {[%emt 0:00:00]} 18. e4 {[%emt 0:
00:00]} Nfd4 {[%emt 0:00:00]} 19. Nb5 {[%emt 0:00:00]} f5 {[%emt 0:00:00]} 20.
Nxd4 {[%emt 0:00:00]} Nxd4 {[%emt 0:00:00]} 21. Bxa5 {[%emt 0:00:00]} Qg5 {
[%emt 0:00:00]} 22. Rbe1 {[%emt 0:00:00]} Be5 {[%emt 0:00:00]} 23. Re3 {
[%emt 0:00:00]} f4 {[%emt 0:00:00]} 24. h4 {[%emt 0:00:00]} Qh6 {[%emt 0:00:00]
} 25. gxf4 {[%emt 0:00:00]} Bg7 {[%emt 0:00:00]} 26. Qd7 {[%emt 0:00:00]} Ne6 {
[%emt 0:00:00]} 27. Bc3 {[%emt 0:00:00]} Bxc3 {[%emt 0:00:00]} 28. bxc3 {
[%emt 0:00:00]} Qxh4 {[%emt 0:00:00]} 29. Rh3 {[%emt 0:00:00]} Qg4+ {[%emt 0:
00:00]} 30. Rg3 {[%emt 0:00:00]} Nxf4+ {[%emt 0:00:00]} 31. Rxf4 {[%emt 0:00:
00]} Qxd7 {[%emt 0:00:00]} 32. Nf6+ {[%emt 0:00:00]} Kg7 {[%emt 0:00:00]} 33.
Nxd7 {[%emt 0:00:00]} Ra8 {[%emt 0:00:00]} 34. Nf6 {[%emt 0:00:00]} 1-0

[Event "Gibraltar Masters 18th"]
[Site "Gibraltar"]
[Date "2020.01.27"]
[Round "7.29"]
[White "Ivanchuk, Vassily"]
[Black "Ravi, Teja S"]
[Result "1/2-1/2"]
[ECO "D27"]
[WhiteElo "2698"]
[BlackElo "2464"]
[PlyCount "67"]
[EventDate "2020.01.21"]
[EventType "swiss"]
[EventRounds "10"]
[EventCountry "GGB"]
[SourceTitle "BritBase"]
[Source "John Saunders"]
[SourceDate "2021.06.05"]
[SourceVersion "1"]
[SourceVersionDate "2021.06.05"]
[SourceQuality "1"]
[TimeControl "40/100:0"]
[WhiteClock "0:42:00"]
[BlackClock "0:04:49"]

1. c4 {[%emt 0:00:00]} e6 {[%emt 0:00:00]} 2. Nc3 {[%emt 0:00:00]} d5 {[%emt 0:
00:00]} 3. d4 {[%emt 0:00:00]} Nf6 {[%emt 0:00:00]} 4. Nf3 {[%emt 0:00:00]}
dxc4 {[%emt 0:00:00]} 5. e3 {[%emt 0:00:00]} a6 {[%emt 0:00:00]} 6. a4 {
[%emt 0:00:00]} b6 {[%emt 0:00:00]} 7. Bxc4 {[%emt 0:00:00]} Bb7 {[%emt 0:00:
00]} 8. O-O {[%emt 0:00:00]} Nbd7 {[%emt 0:00:00]} 9. Qe2 {[%emt 0:00:00]} c5 {
[%emt 0:00:00]} 10. Rd1 {[%emt 0:00:00]} Qc7 {[%emt 0:00:00]} 11. Bd2 {[%emt 0:
00:00]} Bd6 {[%emt 0:00:00]} 12. Rac1 {[%emt 0:00:00]} O-O {[%emt 0:00:00]} 13.
dxc5 {[%emt 0:00:00]} bxc5 {[%emt 0:00:00]} 14. h3 {[%emt 0:00:00]} Bxf3 {
[%emt 0:00:00]} 15. Qxf3 {[%emt 0:00:00]} Ne5 {[%emt 0:00:00]} 16. Qe2 {
[%emt 0:00:00]} Nxc4 {[%emt 0:00:00]} 17. Qxc4 {[%emt 0:00:00]} Rfb8 {[%emt 0:
00:00]} 18. Rc2 {[%emt 0:00:00]} Rb4 {[%emt 0:00:00]} 19. Qe2 {[%emt 0:00:00]}
Rb3 {[%emt 0:00:00]} 20. Na2 {[%emt 0:00:00]} Qc6 {[%emt 0:00:00]} 21. Qc4 {
[%emt 0:00:00]} Qd5 {[%emt 0:00:00]} 22. Qxd5 {[%emt 0:00:00]} Nxd5 {[%emt 0:
00:00]} 23. Nc1 {[%emt 0:00:00]} Rb7 {[%emt 0:00:00]} 24. Nd3 {[%emt 0:00:00]}
f5 {[%emt 0:00:00]} 25. Kf1 {[%emt 0:00:00]} Kf7 {[%emt 0:00:00]} 26. Ke2 {
[%emt 0:00:00]} Nb6 {[%emt 0:00:00]} 27. Ra1 {[%emt 0:00:00]} c4 {[%emt 0:00:
00]} 28. Nb4 {[%emt 0:00:00]} Rc8 {[%emt 0:00:00]} 29. Nxa6 {[%emt 0:00:00]}
Ra8 {[%emt 0:00:00]} 30. Bb4 {[%emt 0:00:00]} Bxb4 {[%emt 0:00:00]} 31. Nxb4 {
[%emt 0:00:00]} Nxa4 {[%emt 0:00:00]} 32. Nc6 {[%emt 0:00:00]} Rxb2 {[%emt 0:
00:00]} 33. Rxb2 {[%emt 0:00:00]} Nc3+ {[%emt 0:00:00]} 34. Kf3 {[%emt 0:00:00]
} 1/2-1/2

[Event "Gibraltar Masters 18th"]
[Site "Gibraltar"]
[Date "2020.01.27"]
[Round "7.30"]
[White "Lagarde, Maxime"]
[Black "Cramling, Pia"]
[Result "1/2-1/2"]
[ECO "A07"]
[WhiteElo "2651"]
[BlackElo "2470"]
[PlyCount "208"]
[EventDate "2020.01.21"]
[EventType "swiss"]
[EventRounds "10"]
[EventCountry "GGB"]
[SourceTitle "BritBase"]
[Source "John Saunders"]
[SourceDate "2021.06.05"]
[SourceVersion "1"]
[SourceVersionDate "2021.06.05"]
[SourceQuality "1"]
[TimeControl "40/100:0"]
[WhiteClock "0:05:17"]
[BlackClock "0:01:01"]

1. g3 {[%emt 0:00:00]} d5 {[%emt 0:00:00]} 2. Nf3 {[%emt 0:00:00]} g6 {[%emt 0:
00:00]} 3. Bg2 {[%emt 0:00:00]} Bg7 {[%emt 0:00:00]} 4. O-O {[%emt 0:00:00]} e5
{[%emt 0:00:00]} 5. d3 {[%emt 0:00:00]} Ne7 {[%emt 0:00:00]} 6. c4 {[%emt 0:00:
00]} dxc4 {[%emt 0:00:00]} 7. dxc4 {[%emt 0:00:00]} Qxd1 {[%emt 0:00:00]} 8.
Rxd1 {[%emt 0:00:00]} O-O {[%emt 0:00:00]} 9. Nc3 {[%emt 0:00:00]} c6 {[%emt 0:
00:00]} 10. e4 {[%emt 0:00:00]} c5 {[%emt 0:00:00]} 11. Nd5 {[%emt 0:00:00]}
Nbc6 {[%emt 0:00:00]} 12. Bg5 {[%emt 0:00:00]} f6 {[%emt 0:00:00]} 13. Nxe7+ {
[%emt 0:00:00]} Nxe7 {[%emt 0:00:00]} 14. Be3 {[%emt 0:00:00]} b6 {[%emt 0:00:
00]} 15. Rd6 {[%emt 0:00:00]} Kf7 {[%emt 0:00:00]} 16. a3 {[%emt 0:00:00]} Be6
{[%emt 0:00:00]} 17. b4 {[%emt 0:00:00]} cxb4 {[%emt 0:00:00]} 18. axb4 {
[%emt 0:00:00]} Bxc4 {[%emt 0:00:00]} 19. Bh3 {[%emt 0:00:00]} Rfd8 {[%emt 0:
00:00]} 20. Rxd8 {[%emt 0:00:00]} Rxd8 {[%emt 0:00:00]} 21. Nd2 {[%emt 0:00:00]
} Be6 {[%emt 0:00:00]} 22. Bxe6+ {[%emt 0:00:00]} Kxe6 {[%emt 0:00:00]} 23.
Rxa7 {[%emt 0:00:00]} Bf8 {[%emt 0:00:00]} 24. b5 {[%emt 0:00:00]} Nc8 {
[%emt 0:00:00]} 25. Rc7 {[%emt 0:00:00]} Nd6 {[%emt 0:00:00]} 26. Rc6 {[%emt 0:
00:00]} Kd7 {[%emt 0:00:00]} 27. Rxb6 {[%emt 0:00:00]} Rc8 {[%emt 0:00:00]} 28.
Ra6 {[%emt 0:00:00]} Nxb5 {[%emt 0:00:00]} 29. Rxf6 {[%emt 0:00:00]} Nd6 {
[%emt 0:00:00]} 30. g4 {[%emt 0:00:00]} Be7 {[%emt 0:00:00]} 31. Rf3 {[%emt 0:
00:00]} Rf8 {[%emt 0:00:00]} 32. Rxf8 {[%emt 0:00:00]} Bxf8 {[%emt 0:00:00]}
33. Bc5 {[%emt 0:00:00]} Bg7 {[%emt 0:00:00]} 34. Bxd6 {[%emt 0:00:00]} Kxd6 {
[%emt 0:00:00]} 35. Nf3 {[%emt 0:00:00]} Bf6 {[%emt 0:00:00]} 36. Kf1 {[%emt 0:
00:00]} Be7 {[%emt 0:00:00]} 37. h4 {[%emt 0:00:00]} h5 {[%emt 0:00:00]} 38. g5
{[%emt 0:00:00]} Bd8 {[%emt 0:00:00]} 39. Ke2 {[%emt 0:00:00]} Bb6 {[%emt 0:00:
00]} 40. Nd2 {[%emt 0:00:00]} Ke6 {[%emt 0:00:20]} 41. Nc4 {[%emt 0:00:00]} Bc5
{[%emt 0:02:24]} 42. Nb2 {[%emt 0:00:00]} Bd6 {[%emt 0:00:00]} 43. Nd3 {
[%emt 0:00:00]} Bc7 {[%emt 0:00:00]} 44. Kd2 {[%emt 0:00:00]} Ba5+ {[%emt 0:00:
00]} 45. Kc2 {[%emt 0:00:00]} Kd6 {[%emt 0:00:00]} 46. Kb3 {[%emt 0:00:00]} Bb6
{[%emt 0:00:00]} 47. Kc4 {[%emt 0:00:00]} Ba7 {[%emt 0:00:00]} 48. Kb5 {
[%emt 0:00:00]} Bd4 {[%emt 0:00:00]} 49. Ka5 {[%emt 0:00:00]} Kc6 {[%emt 0:00:
00]} 50. Ka6 {[%emt 0:00:00]} Kc7 {[%emt 0:00:00]} 51. Kb5 {[%emt 0:00:00]} Kd6
{[%emt 0:00:00]} 52. Kc4 {[%emt 0:00:00]} Ba1 {[%emt 0:00:00]} 53. f3 {[%emt 0:
00:00]} Ke6 {[%emt 0:00:00]} 54. Nc5+ {[%emt 0:00:00]} Kd6 {[%emt 0:00:00]} 55.
Nd3 {[%emt 0:00:00]} Ke6 {[%emt 0:00:00]} 56. Kc5 {[%emt 0:00:00]} Bd4+ {
[%emt 0:00:00]} 57. Kc6 {[%emt 0:00:00]} Bg1 {[%emt 0:00:00]} 58. Nc5+ {
[%emt 0:00:00]} Ke7 {[%emt 0:00:00]} 59. Kd5 {[%emt 0:00:00]} Bf2 {[%emt 0:00:
00]} 60. Nd3 {[%emt 0:00:00]} Bxh4 {[%emt 0:00:00]} 61. Nxe5 {[%emt 0:00:00]}
Bxg5 {[%emt 0:00:00]} 62. Nxg6+ {[%emt 0:00:00]} Kf6 {[%emt 0:00:00]} 63. Ne5 {
[%emt 0:00:00]} Be3 {[%emt 0:00:00]} 64. Nc4 {[%emt 0:00:00]} Bf4 {[%emt 0:00:
00]} 65. e5+ {[%emt 0:00:00]} Kf7 {[%emt 0:00:00]} 66. Ke4 {[%emt 0:00:00]} Bc1
{[%emt 0:00:00]} 67. f4 {[%emt 0:00:00]} h4 {[%emt 0:00:00]} 68. Ne3 {[%emt 0:
00:00]} h3 {[%emt 0:00:00]} 69. Nf1 {[%emt 0:00:00]} Kg6 {[%emt 0:00:00]} 70.
Nh2 {[%emt 0:00:00]} Bb2 {[%emt 0:00:00]} 71. Nf3 {[%emt 0:00:00]} Bc1 {
[%emt 0:00:00]} 72. f5+ {[%emt 0:00:00]} Kh5 {[%emt 0:00:00]} 73. Nh2 {[%emt 0:
00:00]} Kg5 {[%emt 0:00:00]} 74. Nf1 {[%emt 0:00:00]} Ba3 {[%emt 0:00:00]} 75.
f6 {[%emt 0:00:00]} Kg6 {[%emt 0:00:00]} 76. Nh2 {[%emt 0:00:00]} Bc1 {[%emt 0:
00:00]} 77. Kd5 {[%emt 0:00:00]} Bf4 {[%emt 0:00:00]} 78. Ke6 {[%emt 0:00:00]}
Bg5 {[%emt 0:00:00]} 79. Ng4 {[%emt 0:00:00]} Bc1 {[%emt 0:00:00]} 80. Kd7 {
[%emt 0:00:00]} Ba3 {[%emt 0:00:00]} 81. e6 {[%emt 0:00:00]} h2 {[%emt 0:01:28]
} 82. e7 {[%emt 0:00:00]} h1=Q {[%emt 0:00:00]} 83. e8=Q+ {[%emt 0:00:00]} Kg5
{[%emt 0:00:11]} 84. Qe3+ {[%emt 0:00:00]} Kxg4 {[%emt 0:00:01]} 85. Qxa3 {
[%emt 0:00:00]} Qd5+ {[%emt 0:00:05]} 86. Qd6 {[%emt 0:00:00]} Qf7+ {[%emt 0:
00:00]} 87. Qe7 {[%emt 0:00:00]} Qd5+ {[%emt 0:00:00]} 88. Kc7 {[%emt 0:00:00]}
Qa5+ {[%emt 0:00:00]} 89. Kc6 {[%emt 0:00:00]} Qa6+ {[%emt 0:00:00]} 90. Kc5 {
[%emt 0:00:00]} Qa5+ {[%emt 0:00:00]} 91. Kc4 {[%emt 0:00:00]} Qa6+ {[%emt 0:
00:00]} 92. Kb3 {[%emt 0:00:00]} Qd3+ {[%emt 0:00:00]} 93. Kb4 {[%emt 0:00:00]}
Qd4+ {[%emt 0:00:00]} 94. Ka5 {[%emt 0:00:00]} Qd5+ {[%emt 0:00:00]} 95. Kb6 {
[%emt 0:00:00]} Qd4+ {[%emt 0:00:00]} 96. Kb5 {[%emt 0:00:00]} Qd5+ {[%emt 0:
00:00]} 97. Qc5 {[%emt 0:00:00]} Qe6 {[%emt 0:00:00]} 98. Qc4+ {[%emt 0:00:00]}
Kf5 {[%emt 0:00:00]} 99. f7 {[%emt 0:00:00]} Qd7+ {[%emt 0:00:00]} 100. Kb4 {
[%emt 0:00:00]} Qd2+ {[%emt 0:00:00]} 101. Kc5 {[%emt 0:00:00]} Qa5+ {[%emt 0:
00:00]} 102. Kc6 {[%emt 0:00:00]} Qa8+ {[%emt 0:00:00]} 103. Kd7 {[%emt 0:00:
00]} Kf6 {[%emt 0:00:00]} 104. Qe6+ {[%emt 0:00:00]} Kg7 {[%emt 0:00:00]}
1/2-1/2

[Event "Gibraltar Masters 18th"]
[Site "Gibraltar"]
[Date "2020.01.27"]
[Round "7.31"]
[White "Durarbayli, Vasif"]
[Black "Real De Azua, Ernesto"]
[Result "1-0"]
[ECO "C95"]
[WhiteElo "2625"]
[BlackElo "2456"]
[PlyCount "101"]
[EventDate "2020.01.21"]
[EventType "swiss"]
[EventRounds "10"]
[EventCountry "GGB"]
[SourceTitle "BritBase"]
[Source "John Saunders"]
[SourceDate "2021.06.05"]
[SourceVersion "1"]
[SourceVersionDate "2021.06.05"]
[SourceQuality "1"]
[TimeControl "40/100:0"]
[WhiteClock "1:41:13"]
[BlackClock "0:31:28"]

1. e4 {[%emt 0:00:00]} e5 {[%emt 0:00:00]} 2. Nf3 {[%emt 0:00:00]} Nc6 {
[%emt 0:00:00]} 3. Bb5 {[%emt 0:00:00]} a6 {[%emt 0:00:00]} 4. Ba4 {[%emt 0:00:
00]} Nf6 {[%emt 0:00:00]} 5. O-O {[%emt 0:00:00]} Be7 {[%emt 0:00:00]} 6. Re1 {
[%emt 0:00:00]} b5 {[%emt 0:00:00]} 7. Bb3 {[%emt 0:00:00]} d6 {[%emt 0:00:00]}
8. c3 {[%emt 0:00:00]} O-O {[%emt 0:00:00]} 9. h3 {[%emt 0:00:00]} Nb8 {
[%emt 0:00:00]} 10. d4 {[%emt 0:00:00]} Nbd7 {[%emt 0:00:00]} 11. c4 {[%emt 0:
00:00]} c6 {[%emt 0:00:00]} 12. Nc3 {[%emt 0:00:00]} b4 {[%emt 0:00:00]} 13.
Ne2 {[%emt 0:00:00]} Nxe4 {[%emt 0:00:00]} 14. Qc2 {[%emt 0:00:00]} Nef6 {
[%emt 0:00:00]} 15. Ng3 {[%emt 0:00:00]} c5 {[%emt 0:00:00]} 16. dxe5 {[%emt 0:
00:00]} Nxe5 {[%emt 0:00:00]} 17. Nxe5 {[%emt 0:00:00]} dxe5 {[%emt 0:00:00]}
18. Rxe5 {[%emt 0:00:00]} Bd6 {[%emt 0:00:00]} 19. Re2 {[%emt 0:00:00]} Qc7 {
[%emt 0:00:00]} 20. Bg5 {[%emt 0:00:00]} Bxg3 {[%emt 0:00:00]} 21. fxg3 {
[%emt 0:00:00]} Qxg3 {[%emt 0:00:00]} 22. Bxf6 {[%emt 0:00:00]} gxf6 {[%emt 0:
00:00]} 23. Rf1 {[%emt 0:00:00]} f5 {[%emt 0:00:00]} 24. Rf3 {[%emt 0:00:00]}
Qg7 {[%emt 0:00:00]} 25. Qd3 {[%emt 0:00:00]} Qd4+ {[%emt 0:00:00]} 26. Qxd4 {
[%emt 0:00:00]} cxd4 {[%emt 0:00:00]} 27. Bc2 {[%emt 0:00:00]} Be6 {[%emt 0:00:
00]} 28. b3 {[%emt 0:00:00]} a5 {[%emt 0:00:00]} 29. Rd2 {[%emt 0:00:00]} Rfd8
{[%emt 0:00:00]} 30. Bxf5 {[%emt 0:00:00]} a4 {[%emt 0:00:00]} 31. Rg3+ {
[%emt 0:00:00]} Kh8 {[%emt 0:00:00]} 32. Be4 {[%emt 0:00:00]} Ra5 {[%emt 0:00:
00]} 33. Bd5 {[%emt 0:00:00]} axb3 {[%emt 0:00:00]} 34. axb3 {[%emt 0:00:00]}
Ra1+ {[%emt 0:00:00]} 35. Kh2 {[%emt 0:00:00]} Bxd5 {[%emt 0:00:00]} 36. Rxd4 {
[%emt 0:00:00]} Rh1+ {[%emt 0:00:00]} 37. Kxh1 {[%emt 0:00:00]} Bxg2+ {[%emt 0:
00:00]} 38. Kxg2 {[%emt 0:00:00]} Rxd4 {[%emt 0:00:00]} 39. Kf3 {[%emt 0:00:00]
} Rd3+ {[%emt 0:00:00]} 40. Kf4 {[%emt 0:00:00]} Rxg3 {[%emt 0:00:00]} 41. Kxg3
{[%emt 0:00:00]} Kg7 {[%emt 0:00:00]} 42. Kf4 {[%emt 0:00:00]} Kf6 {[%emt 0:00:
00]} 43. h4 {[%emt 0:00:00]} Ke6 {[%emt 0:00:00]} 44. h5 {[%emt 0:00:00]} f5 {
[%emt 0:00:00]} 45. h6 {[%emt 0:00:00]} Kf6 {[%emt 0:00:00]} 46. c5 {[%emt 0:
00:00]} Ke6 {[%emt 0:00:00]} 47. c6 {[%emt 0:00:00]} Kd6 {[%emt 0:00:00]} 48.
Kxf5 {[%emt 0:00:00]} Kxc6 {[%emt 0:00:00]} 49. Ke6 {[%emt 0:00:00]} Kc5 {
[%emt 0:00:00]} 50. Ke5 {[%emt 0:00:00]} Kc6 {[%emt 0:00:00]} 51. Kd4 {[%emt 0:
00:00]} 1-0

[Event "Gibraltar Masters 18th"]
[Site "Gibraltar"]
[Date "2020.01.27"]
[Round "7.32"]
[White "Chigaev, Maksim"]
[Black "Paveto, Kevin"]
[Result "1-0"]
[ECO "C54"]
[WhiteElo "2616"]
[BlackElo "2452"]
[PlyCount "109"]
[EventDate "2020.01.21"]
[EventType "swiss"]
[EventRounds "10"]
[EventCountry "GGB"]
[SourceTitle "BritBase"]
[Source "John Saunders"]
[SourceDate "2021.06.05"]
[SourceVersion "1"]
[SourceVersionDate "2021.06.05"]
[SourceQuality "1"]
[TimeControl "40/100:0"]
[WhiteClock "1:12:36"]
[BlackClock "0:25:43"]

1. e4 {[%emt 0:00:00]} e5 {[%emt 0:00:00]} 2. Nf3 {[%emt 0:00:00]} Nc6 {
[%emt 0:00:00]} 3. Bc4 {[%emt 0:00:00]} Bc5 {[%emt 0:00:00]} 4. d3 {[%emt 0:00:
13]} Nf6 {[%emt 0:00:00]} 5. c3 {[%emt 0:01:01]} d6 {[%emt 0:00:00]} 6. Nbd2 {
[%emt 0:00:00]} a6 {[%emt 0:00:00]} 7. Bb3 {[%emt 0:00:00]} Ba7 {[%emt 0:00:00]
} 8. h3 {[%emt 0:00:00]} h6 {[%emt 0:00:00]} 9. Nf1 {[%emt 0:00:00]} d5 {
[%emt 0:00:00]} 10. exd5 {[%emt 0:00:00]} Nxd5 {[%emt 0:00:00]} 11. Ng3 {
[%emt 0:00:00]} O-O {[%emt 0:00:00]} 12. O-O {[%emt 0:00:00]} Re8 {[%emt 0:00:
00]} 13. Re1 {[%emt 0:00:00]} Be6 {[%emt 0:00:00]} 14. Nh5 {[%emt 0:00:00]} Nf6
{[%emt 0:00:00]} 15. Nxf6+ {[%emt 0:00:00]} Qxf6 {[%emt 0:00:00]} 16. Be3 {
[%emt 0:00:00]} Bxe3 {[%emt 0:00:00]} 17. Rxe3 {[%emt 0:00:00]} Rad8 {[%emt 0:
00:00]} 18. Qe2 {[%emt 0:00:00]} Bxb3 {[%emt 0:00:00]} 19. axb3 {[%emt 0:00:00]
} Qe6 {[%emt 0:00:00]} 20. b4 {[%emt 0:00:00]} Rd5 {[%emt 0:00:00]} 21. d4 {
[%emt 0:00:00]} f6 {[%emt 0:00:00]} 22. Re1 {[%emt 0:00:00]} Qd6 {[%emt 0:00:
00]} 23. Nd2 {[%emt 0:00:00]} Rd8 {[%emt 0:00:00]} 24. Ne4 {[%emt 0:00:00]} Qf8
{[%emt 0:00:00]} 25. dxe5 {[%emt 0:00:00]} Nxe5 {[%emt 0:00:00]} 26. Nc5 {
[%emt 0:00:00]} Rd2 {[%emt 0:00:00]} 27. Qf1 {[%emt 0:00:00]} Qf7 {[%emt 0:00:
00]} 28. Nxb7 {[%emt 0:00:00]} R8d5 {[%emt 0:00:00]} 29. Qxa6 {[%emt 0:00:00]}
Rxb2 {[%emt 0:00:00]} 30. Nc5 {[%emt 0:00:00]} Kh7 {[%emt 0:00:00]} 31. Ne4 {
[%emt 0:00:00]} f5 {[%emt 0:00:00]} 32. Nc5 {[%emt 0:00:00]} Rd6 {[%emt 0:00:
00]} 33. Qf1 {[%emt 0:00:00]} Ng6 {[%emt 0:00:00]} 34. R3e2 {[%emt 0:00:00]}
Rxe2 {[%emt 0:00:00]} 35. Qxe2 {[%emt 0:00:00]} Qd5 {[%emt 0:00:00]} 36. Ne6 {
[%emt 0:00:00]} Rc6 {[%emt 0:00:00]} 37. b5 {[%emt 0:00:00]} Rxc3 {[%emt 0:00:
58]} 38. Qh5 {[%emt 0:00:00]} Qd2 {[%emt 0:00:00]} 39. Re2 {[%emt 0:00:00]}
Rc1+ {[%emt 0:00:08]} 40. Kh2 {[%emt 0:00:00]} Qd6+ {[%emt 0:00:00]} 41. f4 {
[%emt 0:00:00]} Nf8 {[%emt 0:00:00]} 42. Qxf5+ {[%emt 0:00:00]} Kg8 {[%emt 0:
00:00]} 43. Qg4 {[%emt 0:00:00]} Nxe6 {[%emt 0:00:00]} 44. Rxe6 {[%emt 0:00:00]
} Qd7 {[%emt 0:00:00]} 45. Qg6 {[%emt 0:00:00]} Kf8 {[%emt 0:00:00]} 46. f5 {
[%emt 0:00:00]} Rf1 {[%emt 0:00:00]} 47. f6 {[%emt 0:00:00]} gxf6 {[%emt 0:00:
00]} 48. Rxf6+ {[%emt 0:00:00]} Rxf6 {[%emt 0:00:00]} 49. Qxf6+ {[%emt 0:00:00]
} Ke8 {[%emt 0:00:00]} 50. Qh8+ {[%emt 0:00:00]} Ke7 {[%emt 0:00:00]} 51. Qg7+
{[%emt 0:00:00]} Kd6 {[%emt 0:00:00]} 52. Qxd7+ {[%emt 0:00:00]} Kxd7 {[%emt 0:
00:00]} 53. g4 {[%emt 0:00:00]} c5 {[%emt 0:00:00]} 54. bxc6+ {[%emt 0:00:00]}
Kxc6 {[%emt 0:00:00]} 55. Kg3 {[%emt 0:00:00]} 1-0

[Event "Gibraltar Masters 18th"]
[Site "Gibraltar"]
[Date "2020.01.27"]
[Round "7.33"]
[White "Moussard, Jules"]
[Black "Panjwani, Raja"]
[Result "1/2-1/2"]
[ECO "B11"]
[WhiteElo "2600"]
[BlackElo "2444"]
[PlyCount "63"]
[EventDate "2020.01.21"]
[EventType "swiss"]
[EventRounds "10"]
[EventCountry "GGB"]
[SourceTitle "BritBase"]
[Source "John Saunders"]
[SourceDate "2021.06.05"]
[SourceVersion "1"]
[SourceVersionDate "2021.06.05"]
[SourceQuality "1"]
[TimeControl "40/100:0"]

1. e4 {[%emt 2:32:10]} c6 {[%emt 0:00:11]} 2. Nc3 {[%emt 0:00:22]} d5 {[%emt 0:
00:07]} 3. Nf3 {[%emt 0:00:03]} Nf6 {[%emt 0:00:10]} 4. e5 {[%emt 0:00:07]} Ne4
{[%emt 0:00:07]} 5. Ne2 {[%emt 0:00:04]} Qb6 {[%emt 0:00:10]} 6. d4 {[%emt 0:
00:08]} e6 {[%emt 0:00:14]} 7. Ng3 {[%emt 0:00:13]} c5 {[%emt 0:00:12]} 8. Bd3
{[%emt 0:00:21]} Nxg3 {[%emt 0:00:08]} 9. fxg3 {[%emt 0:00:24]} Nc6 {[%emt 0:
02:44]} 10. O-O {[%emt 0:03:58]} cxd4 {[%emt 0:01:58]} 11. a3 {[%emt 0:02:17]}
h6 {[%emt 0:00:25]} 12. b4 {[%emt 0:03:15]} Bd7 {[%emt 0:00:40]} 13. Bb2 {
[%emt 0:15:57]} a6 {[%emt 0:08:54]} 14. Qd2 {[%emt 0:42:24]} Be7 {[%emt 0:06:
59]} 15. Rae1 {[%emt 0:05:24]} O-O-O {[%emt 0:12:04]} 16. Qf4 {[%emt 0:09:02]}
f6 {[%emt 0:17:21]} 17. Bxd4 {[%emt 0:00:21]} Nxd4 {[%emt 0:00:37]} 18. Qxd4 {
[%emt 0:00:04]} Qxd4+ {[%emt 0:00:42]} 19. Nxd4 {[%emt 0:00:01]} fxe5 {[%emt 0:
00:31]} 20. Nxe6 {[%emt 0:00:51]} Bxe6 {[%emt 0:21:59]} 21. Rxe5 {[%emt 0:00:
09]} Rhe8 {[%emt 0:10:03]} 22. Rfe1 {[%emt 0:04:03]} Bf6 {[%emt 0:04:58]} 23.
Rxe6 {[%emt 0:00:25]} Rxe6 {[%emt 0:00:56]} 24. Rxe6 {[%emt 0:00:01]} Kd7 {
[%emt 0:00:14]} 25. Bf5 {[%emt 0:01:15]} Kc7 {[%emt 0:00:21]} 26. g4 {[%emt 0:
03:02]} Rd6 {[%emt 0:00:36]} 27. Re8 {[%emt 0:00:35]} Rc6 {[%emt 0:04:30]} 28.
Kf2 {[%emt 0:04:08]} Rc3 {[%emt 0:00:24]} 29. a4 {[%emt 0:02:36]} Rc4 {[%emt 0:
01:10]} 30. Rc8+ {[%emt 0:00:06]} Kd6 {[%emt 0:00:07]} 31. Rxc4 {[%emt 0:00:06]
} dxc4 {[%emt 0:00:04]} 32. Ke3 {[%emt 0:06:25]} 1/2-1/2